fUST/lending_fUST_20260106
["ID","MTS","AMOUNT","RATE_DAILY","PERIOD"]
[400503286,1767676567740,500.0,0.00030136,120]
[400503287,1767676567998,500.0,0.00030136,120]
[400503288,1767676568239,500.0,0.00030136,120]
[400503289,1767676568490,500.0,0.00030136,120]
[400503290,1767676568731,560.87931796,0.00030136,120]
[400503307,1767677432219,-181.48924521,0.00011926,2]
[400503308,1767677432231,-183.94092014,0.00011926,2]
[400503332,1767677438277,-500.0,0.00011926,2]
[400503334,1767677438288,-437.73,0.00011926,2]
[400503345,1767677438459,-587.71444783,0.00011926,2]
[400503346,1767677438603,-500.0,0.00011926,2]
[400503347,1767677438612,-470.75741404,0.00011926,2]
[400503348,1767677438622,-1025.44444783,0.00011926,2]
[400503350,1767677438632,-423.46160337,0.00011926,2]
[400503352,1767677438641,-1025.44444783,0.00011926,2]
[400503354,1767677438651,-1025.44444783,0.00011926,2]
[400503356,1767677438660,-1025.44444783,0.00011926,2]
[400503358,1767677438669,-500.0,0.00011926,2]
[400503360,1767677438678,-1025.44444783,0.00011926,2]
[400503362,1767677438687,-1025.44444783,0.00011926,2]
[400503364,1767677438696,-1025.44444783,0.00011926,2]
[400503366,1767677438705,-500.0,0.00011926,2]
[400503368,1767677438716,-500.0,0.00011926,2]
[400503369,1767677438725,-1025.44444783,0.00011926,2]
[400503371,1767677438734,-1025.44444783,0.00011926,2]
[400503374,1767677438748,-500.0,0.00011926,2]
[400503376,1767677438757,-620.98415478,0.00011926,2]
[400503378,1767677438768,-404.46029305,0.00011926,2]
[400503380,1767677438778,-1025.44444783,0.00011926,2]
[400503382,1767677438788,-500.0,0.00011926,2]
[400503384,1767677438796,-618.85391653,0.00011926,2]
[400503386,1767677438805,-500.0,0.00011926,2]
[400503388,1767677438814,-206.93726387,0.00011926,2]
[400503390,1767677438823,-500.0,0.00011926,2]
[400503392,1767677438832,-500.0,0.00011926,2]
[400503394,1767677438841,-500.0,0.00011926,2]
[400503396,1767677438851,-500.0,0.00011926,2]
[400503398,1767677438860,-500.0,0.00011926,2]
[400503400,1767677438869,-500.0,0.00011926,2]
[400503402,1767677438878,-500.0,0.00011926,2]
[400503404,1767677438887,-500.0,0.00011926,2]
[400503406,1767677438896,-500.0,0.00011926,2]
[400503408,1767677438905,-500.0,0.00011926,2]
[400503410,1767677438914,-309.44584142,0.00011926,2]
[400503412,1767677438923,-500.0,0.00011926,2]
[400503414,1767677438931,-500.0,0.00011926,2]
[400503416,1767677438941,-500.0,0.00011926,2]
[400503418,1767677438950,-500.0,0.00011926,2]
[400503420,1767677438960,-500.0,0.00011926,2]
[400503422,1767677438969,-500.0,0.00011926,2]
[400503424,1767677438978,-500.0,0.00011926,2]
[400503426,1767677438988,-500.0,0.00011926,2]
[400503428,1767677438997,-500.0,0.00011926,2]
[400503430,1767677439007,-500.0,0.00011926,2]
[400503432,1767677439016,-559.09407029,0.00011926,2]
[400503433,1767677439025,-1025.44444783,0.00011926,2]
[400503434,1767677439035,-500.0,0.00011926,2]
[400503435,1767677439045,-500.0,0.00011926,2]
[400503436,1767677439056,-500.0,0.00011926,2]
[400503437,1767677439066,-500.0,0.00011926,2]
[400503439,1767677439076,-500.0,0.00011926,2]
[400503440,1767677439086,-500.0,0.00011926,2]
[400503441,1767677439095,-500.0,0.00011926,2]
[400503442,1767677439104,-500.0,0.00011926,2]
[400503443,1767677439114,-500.0,0.00011926,2]
[400503444,1767677439123,-500.0,0.00011926,2]
[400503445,1767677439131,-500.0,0.00011926,2]
[400503446,1767677439141,-500.0,0.00011926,2]
[400503447,1767677439150,-500.0,0.00011926,2]
[400503448,1767677439159,-500.0,0.00011926,2]
[400503449,1767677439169,-500.0,0.00011926,2]
[400503450,1767677439179,-1025.44444783,0.00011926,2]
[400503451,1767677439189,-500.0,0.00011926,2]
[400503452,1767677439199,-500.0,0.00011926,2]
[400503453,1767677439210,-500.0,0.00011926,2]
[400503454,1767677439220,-500.0,0.00011926,2]
[400503455,1767677439230,-500.0,0.00011926,2]
[400503456,1767677439240,-1025.44444783,0.00011926,2]
[400503457,1767677439250,-634.24391813,0.00011926,2]
[400503458,1767677439260,-588.37012862,0.00011926,2]
[400503459,1767677439274,-500.0,0.00011926,2]
[400503460,1767677439284,-500.0,0.00011926,2]
[400503461,1767677439294,-500.0,0.00011926,2]
[400503462,1767677439303,-500.0,0.00011926,2]
[400503463,1767677439313,-500.0,0.00011926,2]
[400503464,1767677439322,-500.0,0.00011926,2]
[400503465,1767677439332,-500.0,0.00011926,2]
[400503466,1767677439341,-500.0,0.00011926,2]
[400503467,1767677439351,-500.0,0.00011926,2]
[400503468,1767677439360,-500.0,0.00011926,2]
[400503469,1767677439369,-500.0,0.00011926,2]
[400503470,1767677439378,-500.0,0.00011926,2]
[400503471,1767677439388,-116.05907986,0.00011926,2]
[400503472,1767677439397,-588.0,0.00011926,2]
[400503473,1767677439407,-1200.0,0.00011926,2]
[400503474,1767677439416,-29775.11590194,0.00011927,2]
[400503475,1767677439428,-970224.88409806,0.00011927,2]
[400503476,1767677439438,-274.78670535,0.00011931,2]
[400503477,1767677439447,-50000.0,0.00012026,2]
[400503478,1767677439457,-151.0,0.00012027,2]
[400503479,1767677439468,-151.0,0.00012027,2]
[400503480,1767677439477,-151.0,0.00012027,2]
[400503481,1767677439487,-151.0,0.00012027,2]
[400503482,1767677439496,-274.51827994,0.00012027,2]
[400503483,1767677439506,-151.38560338,0.00012027,2]
[400503484,1767677439515,-204.88595441,0.00012029,2]
[400503485,1767677439524,-500.0,0.00012031,2]
[400503486,1767677439533,-18473.004464,0.00012034,2]
[400503487,1767677439543,-3369.1925274,0.00012034,2]
[400503488,1767677439553,-4140.3164847,0.00012034,2]
[400503489,1767677439562,-67280.6151991,0.00012034,2]
[400503490,1767677439572,-2368.21,0.00012329,2]
[400503491,1767677439583,-1973.51,0.00012329,2]
[400503492,1767677439594,-1644.59,0.00012329,2]
[400503493,1767677439604,-1370.49,0.00012329,2]
[400503494,1767677439616,-1142.08,0.00012329,2]
[400503495,1767677439627,-951.73,0.00012329,2]
[400503496,1767677439636,-793.11,0.00012329,2]
[400503497,1767677439645,-660.92,0.00012329,2]
[400503498,1767677439655,-550.77,0.00012329,2]
[400503499,1767677439665,-458.97,0.00012329,2]
[400503500,1767677439675,-382.48,0.00012329,2]
[400503501,1767677439685,-318.73,0.00012329,2]
[400503502,1767677439694,-265.61,0.00012329,2]
[400503503,1767677439703,-221.34,0.00012329,2]
[400503504,1767677439714,-300.0,0.00012376,2]
[400503505,1767677439723,-300.0,0.00012376,2]
[400503506,1767677439732,-300.0,0.00012376,2]
[400503507,1767677439742,-300.0,0.00012376,2]
[400503508,1767677439751,-300.0,0.00012376,2]
[400503509,1767677439761,-300.0,0.00012376,2]
[400503510,1767677439770,-300.0,0.00012376,2]
[400503511,1767677439781,-300.0,0.00012376,2]
[400503512,1767677439790,-300.0,0.00012376,2]
[400503513,1767677439799,-300.0,0.00012376,2]
[400503514,1767677439808,-300.0,0.00012376,2]
[400503515,1767677439817,-300.0,0.00012376,2]
[400503516,1767677439825,-300.0,0.00012376,2]
[400503517,1767677439834,-300.0,0.00012376,2]
[400503518,1767677439843,-300.0,0.00012376,2]
[400503519,1767677439854,-11022.29277645,0.000129,2]
[400503520,1767677439863,-420.0,0.00013093,2]
[400503521,1767677439872,-1680.0,0.00013118,2]
[400503522,1767677439881,-1041.66666667,0.00013216,2]
[400503523,1767677439890,-500.0,0.00013273,2]
[400503524,1767677439903,-500.0,0.00013273,2]
[400503525,1767677439917,-500.0,0.00013273,2]
[400503526,1767677439931,-500.0,0.00013273,2]
[400503527,1767677439944,-500.0,0.00013273,2]
[400503528,1767677439956,-500.0,0.00013273,2]
[400503529,1767677439969,-500.0,0.00013273,2]
[400503530,1767677439980,-500.0,0.00013273,2]
[400503531,1767677439992,-500.0,0.00013273,2]
[400503532,1767677440004,-500.0,0.00013273,2]
[400503533,1767677440016,-500.0,0.00013273,2]
[400503534,1767677440028,-545.13520472,0.00013273,2]
[400503535,1767677440040,-500.0,0.00013273,2]
[400503536,1767677440052,-500.0,0.00013273,2]
[400503537,1767677440063,-500.0,0.00013273,2]
[400503538,1767677440075,-500.0,0.00013273,2]
[400503539,1767677440087,-500.0,0.00013273,2]
[400503540,1767677440100,-500.0,0.00013273,2]
[400503541,1767677440113,-270.22569021,0.00013273,2]
[400503542,1767677440125,-340.82770091,0.00013273,2]
[400503543,1767677440136,-381.48667104,0.00013273,2]
[400503545,1767677440148,-500.0,0.00013273,2]
[400503547,1767677440159,-500.0,0.00013273,2]
[400503549,1767677440170,-500.0,0.00013273,2]
[400503551,1767677440181,-500.0,0.00013273,2]
[400503556,1767677440193,-500.0,0.00013273,2]
[400503558,1767677440204,-500.0,0.00013273,2]
[400503559,1767677440217,-500.0,0.00013273,2]
[400503560,1767677440228,-500.0,0.00013273,2]
[400503562,1767677440238,-500.0,0.00013273,2]
[400503564,1767677440248,-500.0,0.00013273,2]
[400503566,1767677440258,-444.85685541,0.00013273,2]
[400503568,1767677440272,-500.0,0.00013273,2]
[400503571,1767677440289,-186.38733603,0.00013273,2]
[400503574,1767677440309,-602.7767078,0.00013273,2]
[400503575,1767677440324,-500.0,0.00013273,2]
[400503576,1767677440340,-501.1671243,0.00013273,2]
[400503577,1767677440354,-500.0,0.00013273,2]
[400503578,1767677440368,-500.0,0.00013273,2]
[400503579,1767677440382,-500.0,0.00013273,2]
[400503580,1767677440396,-500.50196388,0.00013273,2]
[400503581,1767677440410,-600.0,0.00013537,2]
[400503582,1767677440421,-4121.8844444,0.00013599,2]
[400503583,1767677440431,-300.0,0.00013673,2]
[400503584,1767677440441,-513.29487857,0.00013698,2]
[400503585,1767677440451,-966.67,0.00013698,2]
[400503586,1767677440463,-966.67,0.00013698,2]
[400503587,1767677440475,-966.67,0.00013698,2]
[400503588,1767677440489,-966.67,0.00013698,2]
[400503589,1767677440502,-966.67,0.00013698,2]
[400503590,1767677440512,-966.67,0.00013698,2]
[400503591,1767677440522,-966.67,0.00013698,2]
[400503592,1767677440532,-966.67,0.00013698,2]
[400503593,1767677440543,-966.67,0.00013698,2]
[400503594,1767677440555,-966.67,0.00013698,2]
[400503595,1767677440568,-966.67,0.00013698,2]
[400503596,1767677440581,-966.67,0.00013698,2]
[400503597,1767677440592,-966.67,0.00013698,2]
[400503598,1767677440602,-966.67,0.00013698,2]
[400503599,1767677440613,-966.67,0.00013698,2]
[400503600,1767677440623,-966.67,0.00013698,2]
[400503601,1767677440633,-966.67,0.00013698,2]
[400503602,1767677440644,-966.67,0.00013698,2]
[400503603,1767677440655,-966.67,0.00013698,2]
[400503604,1767677440666,-966.67,0.00013698,2]
[400503605,1767677440678,-966.67,0.00013698,2]
[400503606,1767677440693,-966.67,0.00013698,2]
[400503607,1767677440705,-966.67,0.00013698,2]
[400503608,1767677440717,-966.79556502,0.00013698,2]
[400503609,1767677440729,-500.0,0.00013698,2]
[400503610,1767677440740,-500.0,0.00013698,2]
[400503611,1767677440751,-500.0,0.00013698,2]
[400503612,1767677440761,-500.0,0.00013698,2]
[400503613,1767677440772,-500.0,0.00013698,2]
[400503614,1767677440783,-500.0,0.00013698,2]
[400503615,1767677440794,-500.0,0.00013698,2]
[400503616,1767677440805,-500.0,0.00013698,2]
[400503617,1767677440815,-500.0,0.00013698,2]
[400503618,1767677440827,-500.0,0.00013698,2]
[400503619,1767677440838,-500.0,0.00013698,2]
[400503620,1767677440848,-500.0,0.00013698,2]
[400503621,1767677440859,-500.0,0.00013698,2]
[400503622,1767677440870,-500.0,0.00013698,2]
[400503623,1767677440880,-500.0,0.00013698,2]
[400503624,1767677440891,-500.0,0.00013698,2]
[400503625,1767677440901,-500.0,0.00013698,2]
[400503626,1767677440912,-476.39506874,0.00013698,2]
[400503627,1767677440923,-664.2,0.00013698,2]
[400503628,1767677440934,-664.2,0.00013698,2]
[400503629,1767677440944,-664.2,0.00013698,2]
[400503630,1767677440954,-664.2,0.00013698,2]
[400503631,1767677440965,-664.2,0.00013698,2]
[400503632,1767677440976,-664.2,0.00013698,2]
[400503633,1767677440986,-664.2,0.00013698,2]
[400503634,1767677440997,-664.2,0.00013698,2]
[400503635,1767677441008,-664.2,0.00013698,2]
[400503636,1767677441018,-664.2,0.00013698,2]
[400503637,1767677441029,-664.2,0.00013698,2]
[400503638,1767677441039,-664.2,0.00013698,2]
[400503639,1767677441050,-664.2,0.00013698,2]
[400503640,1767677441060,-664.2,0.00013698,2]
[400503641,1767677441071,-664.2,0.00013698,2]
[400503642,1767677441081,-500.0,0.00013698,2]
[400503643,1767677441092,-664.2,0.00013698,2]
[400503644,1767677441104,-664.2,0.00013698,2]
[400503645,1767677441115,-664.2,0.00013698,2]
[400503646,1767677441126,-664.2,0.00013698,2]
[400503647,1767677441136,-664.2,0.00013698,2]
[400503648,1767677441147,-664.2,0.00013698,2]
[400503649,1767677441157,-664.2,0.00013698,2]
[400503650,1767677441168,-664.2,0.00013698,2]
[400503651,1767677441178,-664.34864366,0.00013698,2]
[400503652,1767677441189,-2068.09,0.00013698,2]
[400503653,1767677441199,-2068.09,0.00013698,2]
[400503654,1767677441210,-2068.09,0.00013698,2]
[400503655,1767677441221,-2068.09,0.00013698,2]
[400503656,1767677441231,-2068.09,0.00013698,2]
[400503657,1767677441242,-2068.09,0.00013698,2]
[400503658,1767677441252,-2068.09,0.00013698,2]
[400503659,1767677441263,-2068.09,0.00013698,2]
[400503660,1767677441277,-2068.09,0.00013698,2]
[400503661,1767677441287,-2068.09,0.00013698,2]
[400503662,1767677441298,-2068.09,0.00013698,2]
[400503663,1767677441309,-2068.09,0.00013698,2]
[400503664,1767677441319,-2068.09,0.00013698,2]
[400503665,1767677441329,-2068.09,0.00013698,2]
[400503666,1767677441338,-2068.09,0.00013698,2]
[400503667,1767677441347,-2068.09,0.00013698,2]
[400503668,1767677441356,-2068.09,0.00013698,2]
[400503669,1767677441365,-2068.09,0.00013698,2]
[400503670,1767677441374,-2068.09,0.00013698,2]
[400503671,1767677441383,-2068.09,0.00013698,2]
[400503672,1767677441392,-2068.09,0.00013698,2]
[400503673,1767677441401,-2068.09,0.00013698,2]
[400503674,1767677441569,-2068.09,0.00013698,2]
[400503675,1767677441589,-2068.16620781,0.00013698,2]
[400503676,1767677441599,-500.0,0.00013698,2]
[400503677,1767677441608,-500.0,0.00013698,2]
[400503678,1767677441618,-500.0,0.00013698,2]
[400503679,1767677441629,-500.0,0.00013698,2]
[400503680,1767677441639,-500.0,0.00013698,2]
[400503681,1767677441648,-500.0,0.00013698,2]
[400503682,1767677441657,-256.08,0.00013698,2]
[400503683,1767677441666,-1000.0,0.00013699,2]
[400503684,1767677441675,-500.0,0.00013699,2]
[400503685,1767677441684,-500.0,0.00013699,2]
[400503686,1767677441693,-500.0,0.00013699,2]
[400503687,1767677441702,-500.0,0.00013699,2]
[400503688,1767677441713,-500.0,0.00013699,2]
[400503689,1767677441723,-500.0,0.00013699,2]
[400503690,1767677441731,-418.16525297,0.00013699,2]
[400503691,1767677441740,-501.85764264,0.00013699,2]
[400503692,1767677441749,-500.0,0.00013699,2]
[400503693,1767677441758,-500.0,0.00013699,2]
[400503694,1767677441768,-500.0,0.00013699,2]
[400503695,1767677441777,-500.0,0.00013699,2]
[400503696,1767677441786,-500.0,0.00013699,2]
[400503697,1767677441795,-500.0,0.00013699,2]
[400503698,1767677441804,-577.71993543,0.00013699,2]
[400503699,1767677441812,-501.59205968,0.00013699,2]
[400503700,1767677441822,-500.0,0.00013699,2]
[400503701,1767677441831,-500.0,0.00013699,2]
[400503702,1767677441840,-500.0,0.00013699,2]
[400503703,1767677441849,-500.0,0.00013699,2]
[400503704,1767677441858,-500.0,0.00013699,2]
[400503705,1767677441868,-491.42200278,0.00013699,2]
[400503706,1767677441877,-184.59334166,0.00013699,2]
[400503707,1767677441886,-500.0,0.00013699,2]
[400503708,1767677441894,-500.0,0.00013699,2]
[400503709,1767677441903,-500.0,0.00013699,2]
[400503710,1767677441913,-500.0,0.00013699,2]
[400503711,1767677441923,-500.0,0.00013699,2]
[400503712,1767677441933,-501.52353401,0.00013699,2]
[400503713,1767677441943,-500.0,0.00013699,2]
[400503714,1767677441952,-500.0,0.00013699,2]
[400503715,1767677441960,-500.0,0.00013699,2]
[400503716,1767677441969,-500.0,0.00013699,2]
[400503717,1767677441977,-1000.0,0.00013821,2]
[400503718,1767677441986,-1000.0,0.00013821,2]
[400503719,1767677441995,-1000.0,0.00013821,2]
[400503720,1767677442004,-1000.0,0.00013821,2]
[400503721,1767677442013,-1000.0,0.00013821,2]
[400503722,1767677442022,-1000.0,0.00013821,2]
[400503723,1767677442031,-1000.0,0.00013821,2]
[400503724,1767677442039,-1000.0,0.00013821,2]
[400503725,1767677442049,-5000.0,0.0001386,2]
[400503726,1767677442057,-324.24831231,0.00013931,2]
[400503727,1767677442066,-919.7167362,0.00013948,2]
[400503728,1767677442075,-1107.76576153,0.00014175,2]
[400503729,1767677442083,-600.0,0.00014221,2]
[400503730,1767677442093,-1011.61353792,0.00014247,2]
[400503731,1767677442101,-909.51288327,0.00014247,2]
[400503732,1767677442110,-1000.0,0.00014247,2]
[400503733,1767677442119,-636.19652258,0.00014247,2]
[400503734,1767677442128,-1000.0,0.00014247,2]
[400503735,1767677442136,-1000.0,0.00014247,2]
[400503736,1767677442145,-1000.0,0.00014247,2]
[400503737,1767677442154,-804.92823426,0.00014247,2]
[400503738,1767677442164,-1000.0,0.00014247,2]
[400503739,1767677442173,-1000.0,0.00014247,2]
[400503740,1767677442182,-973.47459044,0.00014247,2]
[400503741,1767677442191,-1000.0,0.00014247,2]
[400503742,1767677442200,-1000.0,0.00014247,2]
[400503743,1767677442210,-1000.0,0.00014247,2]
[400503744,1767677442219,-1000.0,0.00014247,2]
[400503745,1767677442229,-1057.81149172,0.00014247,2]
[400503746,1767677442238,-1000.0,0.00014247,2]
[400503747,1767677442247,-2481.55036914,0.00014303,2]
[400503748,1767677442257,-229.21411444,0.00014304,2]
[400503749,1767677442269,-500.0,0.00014304,2]
[400503750,1767677442279,-500.0,0.00014304,2]
[400503751,1767677442288,-500.0,0.00014304,2]
[400503752,1767677442297,-151.92238479,0.00014304,2]
[400503753,1767677442306,-500.0,0.00014304,2]
[400503754,1767677442318,-154.03586932,0.00014304,2]
[400503755,1767677442328,-500.0,0.00014304,2]
[400503756,1767677442337,-243.3328023,0.00014304,2]
[400503757,1767677442347,-500.0,0.00014304,2]
[400503758,1767677442356,-153.10783678,0.00014304,2]
[400503759,1767677442365,-156.80485836,0.00014304,2]
[400503760,1767677442374,-1500.0,0.00014368,2]
[400503761,1767677442383,-1500.0,0.00014368,2]
[400503762,1767677442392,-1500.0,0.00014368,2]
[400503763,1767677442402,-1500.0,0.00014368,2]
[400503764,1767677442411,-1500.0,0.00014368,2]
[400503765,1767677442420,-1500.0,0.00014368,2]
[400503766,1767677442429,-1500.0,0.00014368,2]
[400503767,1767677442438,-1092.31123047,0.00014369,2]
[400503768,1767677442447,-30000.0,0.00014369,2]
[400503769,1767677442456,-496.47127164,0.00014369,2]
[400503770,1767677442466,-286.0795197,0.00014369,2]
[400503771,1767677442475,-153.4156913,0.00014369,2]
[400503772,1767677442484,-500.0,0.00014369,2]
[400503773,1767677442493,-500.0,0.00014369,2]
[400503774,1767677442502,-500.0,0.00014369,2]
[400503775,1767677442511,-250.0,0.00014369,2]
[400503776,1767677442520,-500.0,0.00014369,2]
[400503777,1767677442530,-2030.29667201,0.00014369,2]
[400503778,1767677442539,-250.0,0.00014369,2]
[400503779,1767677442549,-500.0,0.00014369,2]
[400503780,1767677442558,-250.0,0.00014369,2]
[400503781,1767677442567,-500.0,0.00014369,2]
[400503782,1767677442576,-264.57870743,0.00014369,2]
[400503783,1767677442585,-500.0,0.00014369,2]
[400503784,1767677442594,-250.0,0.00014369,2]
[400503785,1767677442603,-250.0,0.00014369,2]
[400503786,1767677442613,-500.0,0.00014369,2]
[400503787,1767677442621,-250.0,0.00014369,2]
[400503788,1767677442631,-500.0,0.00014369,2]
[400503789,1767677442640,-250.0,0.00014369,2]
[400503790,1767677442649,-500.0,0.00014369,2]
[400503791,1767677442658,-255.24985543,0.00014369,2]
[400503792,1767677442669,-500.0,0.00014369,2]
[400503793,1767677442679,-151.0,0.00014369,2]
[400503794,1767677442687,-500.0,0.00014369,2]
[400503795,1767677442697,-500.0,0.00014369,2]
[400503796,1767677442707,-500.0,0.00014369,2]
[400503797,1767677442717,-500.0,0.00014369,2]
[400503798,1767677442727,-151.0,0.00014369,2]
[400503799,1767677442738,-151.0,0.00014369,2]
[400503800,1767677442747,-151.0,0.00014369,2]
[400503801,1767677442756,-151.0,0.00014369,2]
[400503802,1767677442766,-2398.4119403,0.00014369,2]
[400503803,1767677442775,-151.0,0.00014369,2]
[400503804,1767677442784,-151.0,0.00014369,2]
[400503805,1767677442793,-299.09793067,0.00014369,2]
[400503806,1767677442803,-180.0,0.00014374,2]
[400503807,1767677442812,-2351.0,0.0001443,2]
[400503808,1767677442821,-500.0,0.00014441,2]
[400503809,1767677442830,-609.59469468,0.00014441,2]
[400503810,1767677442839,-500.0,0.00014441,2]
[400503811,1767677442848,-152.00675301,0.00014441,2]
[400503812,1767677442858,-500.0,0.00014441,2]
[400503813,1767677442867,-500.0,0.00014441,2]
[400503814,1767677442876,-500.0,0.00014441,2]
[400503815,1767677442885,-500.0,0.00014578,2]
[400503816,1767677442896,-500.0,0.00014578,2]
[400503817,1767677442907,-202.6039413,0.00014578,2]
[400503818,1767677442917,-158.922237,0.00014578,2]
[400503819,1767677442926,-500.0,0.00014578,2]
[400503820,1767677442935,-162.92329902,0.00014578,2]
[400503821,1767677442944,-500.86684083,0.00014578,2]
[400503822,1767677442955,-500.0,0.00014578,2]
[400503823,1767677442964,-923.8294803,0.00014637,2]
[400503824,1767677442974,-15012.3344442,0.00014637,2]
[400503825,1767677442984,-3023.29728461,0.00014698,2]
[400503826,1767677442993,-500.0,0.00014715,2]
[400503827,1767677443003,-500.0,0.00014715,2]
[400503828,1767677443012,-500.0,0.00014715,2]
[400503829,1767677443022,-165.36125595,0.00014715,2]
[400503830,1767677443031,-500.0,0.00014715,2]
[400503831,1767677443041,-153.84819516,0.00014715,2]
[400503832,1767677443050,-200.0,0.00014735,2]
[400503833,1767677443060,-100000.0,0.00014736,2]
[400503834,1767677443069,-168.055,0.00014768,2]
[400503835,1767677443079,-900.0,0.00014768,2]
[400503836,1767677443088,-1507.97195792,0.00014795,2]
[400503837,1767677443099,-1500.0,0.00014795,2]
[400503838,1767677443108,-1500.0,0.00014795,2]
[400503839,1767677443118,-1044.59336019,0.00014795,2]
[400503840,1767677443128,-1500.0,0.00014795,2]
[400503841,1767677443138,-1083.90657441,0.00014795,2]
[400503842,1767677443147,-1500.0,0.00014795,2]
[400503843,1767677443157,-1500.0,0.00014795,2]
[400503844,1767677443167,-1500.0,0.00014795,2]
[400503845,1767677443176,-642.90527904,0.00014795,2]
[400503846,1767677443185,-1500.0,0.00014795,2]
[400503847,1767677443195,-500.0,0.00014852,2]
[400503848,1767677443204,-500.0,0.00014852,2]
[400503849,1767677443214,-200.4693319,0.00014852,2]
[400503850,1767677443223,-500.0,0.00014852,2]
[400503851,1767677443232,-500.0,0.00014852,2]
[400503852,1767677443242,-250.38477157,0.00014873,2]
[400503853,1767677443252,-720.0,0.00014891,2]
[400503854,1767677443265,-160.0,0.00014899,4]
[400503855,1767677443275,-2000.0,0.00014916,2]
[400503856,1767677443284,-2000.0,0.00014916,2]
[400503857,1767677443294,-2000.0,0.00014916,2]
[400503858,1767677443303,-1334.48545738,0.00014916,2]
[400503859,1767677443312,-361.15798132,0.00014916,2]
[400503860,1767677443322,-2000.0,0.00014916,2]
[400503861,1767677443331,-2000.0,0.00014916,2]
[400503862,1767677443340,-31110.0,0.00014917,2]
[400503863,1767677443349,-553.64373807,0.00014917,2]
[400503864,1767677443358,-2487.15318209,0.00014917,2]
[400503865,1767677443369,-500.0,0.00014989,2]
[400503866,1767677443378,-500.0,0.00014989,2]
[400503867,1767677443387,-500.0,0.00014989,2]
[400503868,1767677443396,-1000.0,0.00015,2]
[400503869,1767677443405,-1159.7728086,0.00015,2]
[400503870,1767677443415,-165870.3848377,0.0001501,2]
[400503871,1767677443424,-800.0,0.00015068,2]
[400503872,1767677443433,-404.22403567,0.00015126,2]
[400503873,1767677443443,-500.0,0.00015126,2]
[400503874,1767677443452,-206.1342198,0.00015218,2]
[400503875,1767677443462,-3349.7045887,0.00015218,2]
[400503876,1767677443471,-500.0,0.00015263,2]
[400503877,1767677443481,-10000.0,0.00015283,2]
[400503878,1767677443490,-160.0,0.00015299,5]
[400503879,1767677443499,-1200.0,0.00015316,2]
[400503880,1767677443508,-1011.34041447,0.00015342,2]
[400503881,1767677443517,-1190.51130763,0.00015342,2]
[400503882,1767677443526,-563.41663894,0.00015342,2]
[400503883,1767677443535,-2000.0,0.00015342,2]
[400503884,1767677443543,-1192.18736728,0.00015342,2]
[400503885,1767677443553,-1033.7772006,0.00015342,2]
[400503886,1767677443562,-505.12105821,0.00015342,2]
[400503887,1767677443571,-167.7422187,0.0001536,2]
[400503888,1767677443581,-200.0,0.00015382,2]
[400503889,1767677443590,-347.0,0.00015383,2]
[400503890,1767677443600,-347.0,0.00015383,2]
[400503891,1767677443609,-151.0,0.00015383,2]
[400503892,1767677443619,-152.0,0.00015383,2]
[400503893,1767677443627,-166.0,0.00015383,2]
[400503894,1767677443637,-152.0,0.00015383,2]
[400503895,1767677443647,-163.0,0.00015383,2]